[Event "*** Titled Tuesday Blitz"]
[Site "Chess.com"]
[Date "2020.11.03"]
[Round "6"]
[White "WiktoriaPOL"]
[Black "AniJak"]
[Result "1/2-1/2"]
[WhiteElo "2090"]
[BlackElo "2300"]
[TimeControl "180+1"]
[EndTime "11:11:50 PST"]
[Termination "Game drawn by agreement"]

1. c4 {[%clk 0:03:00.9]} 1... e5 {[%clk 0:02:59.2]} 2. Nc3 {[%clk 0:03:00.5]}
2... Nc6 {[%clk 0:02:59.2]} 3. Nf3 {[%clk 0:02:59.6]} 3... g6 {[%clk 0:02:59.2]}
4. d4 {[%clk 0:02:59]} 4... exd4 {[%clk 0:02:56.8]} 5. Nxd4 {[%clk 0:02:59.9]}
5... Bg7 {[%clk 0:02:56.6]} 6. Nc2 {[%clk 0:02:56.9]} 6... Nge7 {[%clk
0:02:55.4]} 7. g3 {[%clk 0:02:54.7]} 7... O-O {[%clk 0:02:54.8]} 8. Bg2 {[%clk
0:02:53.2]} 8... d6 {[%clk 0:02:55.2]} 9. O-O {[%clk 0:02:52.4]} 9... Be6 {[%clk
0:02:55.1]} 10. Nd5 {[%clk 0:02:48.3]} 10... Ne5 {[%clk 0:02:36.5]} 11. Nce3
{[%clk 0:02:37.9]} 11... c6 {[%clk 0:02:33.7]} 12. Nxe7+ {[%clk 0:02:36.2]}
12... Qxe7 {[%clk 0:02:33.5]} 13. Qc2 {[%clk 0:02:35.4]} 13... f5 {[%clk
0:02:29.4]} 14. Rb1 {[%clk 0:02:13.3]} 14... Rad8 {[%clk 0:02:16.4]} 15. b3
{[%clk 0:02:11.6]} 15... Ng4 {[%clk 0:02:07.2]} 16. Nxg4 {[%clk 0:02:09.4]}
16... fxg4 {[%clk 0:02:08.1]} 17. Bb2 {[%clk 0:02:08.8]} 17... d5 {[%clk
0:01:51.1]} 18. Bxg7 {[%clk 0:02:05.9]} 18... Qxg7 {[%clk 0:01:52]} 19. cxd5
{[%clk 0:02:05.7]} 19... Bxd5 {[%clk 0:01:50.6]} 20. Bxd5+ {[%clk 0:02:02.1]}
20... Rxd5 {[%clk 0:01:50.5]} 21. Rbd1 {[%clk 0:02:00.4]} 21... Rdf5 {[%clk
0:01:46.6]} 22. Qc4+ {[%clk 0:01:57.9]} 22... Qf7 {[%clk 0:01:44.8]} 23. Qxf7+
{[%clk 0:01:46.7]} 23... R8xf7 {[%clk 0:01:45.7]} 24. Rd4 {[%clk 0:01:42]} 24...
h5 {[%clk 0:01:45.6]} 25. Kg2 {[%clk 0:01:41.5]} 25... Kg7 {[%clk 0:01:42.5]}
26. f3 {[%clk 0:01:40.2]} 26... gxf3+ {[%clk 0:01:41.9]} 27. exf3 {[%clk
0:01:39.1]} 27... Ra5 {[%clk 0:01:41.1]} 28. Rf2 {[%clk 0:01:37.8]} 28... Re7
{[%clk 0:01:37.2]} 29. Rfd2 {[%clk 0:01:36.5]} 29... Kf7 {[%clk 0:01:32.2]} 30.
f4 {[%clk 0:01:27.6]} 30... a6 {[%clk 0:01:32.1]} 31. Kf3 {[%clk 0:01:26.1]}
31... Rc5 {[%clk 0:01:29.6]} 32. Rd7 {[%clk 0:01:13.2]} 32... Rc3+ {[%clk
0:01:29.5]} 33. Kf2 {[%clk 0:01:07.1]} 33... Rc1 {[%clk 0:01:21.4]} 34. Rxe7+
{[%clk 0:01:03.8]} 34... Kxe7 {[%clk 0:01:22.1]} 35. h3 {[%clk 0:01:02.3]} 35...
Rh1 {[%clk 0:01:21.1]} 36. Kg2 {[%clk 0:01:01.7]} 36... Rc1 {[%clk 0:01:18.6]}
37. g4 {[%clk 0:01:01.2]} 37... hxg4 {[%clk 0:01:17]} 38. hxg4 {[%clk
0:01:00.9]} 38... Rc3 {[%clk 0:01:17.3]} 39. Kf2 {[%clk 0:00:52.5]} 39... a5
{[%clk 0:01:17.5]} 40. Re2+ {[%clk 0:00:46.9]} 40... Kf7 {[%clk 0:01:15.1]} 41.
Rd2 {[%clk 0:00:45.6]} 41... b5 {[%clk 0:01:09.5]} 42. Re2 {[%clk 0:00:32.2]}
42... a4 {[%clk 0:01:08.5]} 43. bxa4 {[%clk 0:00:31.2]} 43... bxa4 {[%clk
0:01:08.4]} 44. Rd2 {[%clk 0:00:25.6]} 44... c5 {[%clk 0:01:05.6]} 45. Rd7+
{[%clk 0:00:19.8]} 45... Ke6 {[%clk 0:01:05.4]} 46. Rd2 {[%clk 0:00:18.6]} 46...
Rc4 {[%clk 0:00:58.7]} 47. Kf3 {[%clk 0:00:17.8]} 47... Rc3+ {[%clk 0:00:58.8]}
48. Ke4 {[%clk 0:00:17.2]} 48... Rc4+ {[%clk 0:00:58.6]} 49. Kf3 {[%clk
0:00:17]} 49... Rb4 {[%clk 0:00:55]} 50. Rc2 {[%clk 0:00:15.5]} 50... Kd5 {[%clk
0:00:52.6]} 51. f5 {[%clk 0:00:13.2]} 51... gxf5 {[%clk 0:00:51.9]} 52. gxf5
{[%clk 0:00:13.5]} 52... a3 {[%clk 0:00:51.4]} 53. f6 {[%clk 0:00:08]} 53... Ke6
{[%clk 0:00:49.5]} 54. Rxc5 {[%clk 0:00:07]} 54... Rb2 {[%clk 0:00:43.8]} 55.
Ra5 {[%clk 0:00:06.5]} 55... Rxa2 {[%clk 0:00:43.1]} 56. Ke3 {[%clk 0:00:06.5]}
56... Kxf6 {[%clk 0:00:42.3]} 57. Kd3 {[%clk 0:00:06.4]} 57... Ke6 {[%clk
0:00:41.9]} 58. Kc4 {[%clk 0:00:04.8]} 58... Kd6 {[%clk 0:00:41.1]} 59. Kb3
{[%clk 0:00:04.6]} 59... Ra1 {[%clk 0:00:38.8]} 60. Rxa3 {[%clk 0:00:04.5]}
60... Rb1+ {[%clk 0:00:39.2]} 61. Kc2 {[%clk 0:00:04.1]} 61... Rh1 {[%clk
0:00:39.1]} 62. Rd3+ {[%clk 0:00:04.3]} 62... Kc5 {[%clk 0:00:38.9]} 63. Rd1
{[%clk 0:00:04.8]} 63... Rh2+ {[%clk 0:00:37.9]} 64. Rd2 {[%clk 0:00:05.1]}
64... Rh3 {[%clk 0:00:37.8]} 65. Rd3 {[%clk 0:00:05.3]} 65... Rh4 {[%clk
0:00:37.6]} 66. Rc3+ {[%clk 0:00:05.5]} 66... Kb4 {[%clk 0:00:37.6]} 67. Rb3+
{[%clk 0:00:05.7]} 67... Ka4 {[%clk 0:00:38]} 68. Rc3 {[%clk 0:00:05.7]} 68...
Rh2+ {[%clk 0:00:37.6]} 69. Kd3 {[%clk 0:00:05.6]} 69... Rh3+ {[%clk 0:00:37.8]}
70. Kd4 {[%clk 0:00:05.7]} 70... Rh4+ {[%clk 0:00:38]} 71. Kd5 {[%clk
0:00:05.6]} 71... Kb4 {[%clk 0:00:37.4]} 72. Rd3 {[%clk 0:00:05]} 72... Rh8
{[%clk 0:00:36.8]} 73. Rd4+ {[%clk 0:00:05.1]} 73... Kb5 {[%clk 0:00:37.1]} 74.
Ke4 {[%clk 0:00:05.3]} 74... Re8+ {[%clk 0:00:37]} 75. Kd3 {[%clk 0:00:05]}
75... Rh8 {[%clk 0:00:36.2]} 76. Re4 {[%clk 0:00:05.1]} 76... Kc5 {[%clk
0:00:35.2]} 77. Re5+ {[%clk 0:00:05]} 77... Kd6 {[%clk 0:00:35.5]} 78. Re4
{[%clk 0:00:05.3]} 78... Kd5 {[%clk 0:00:35.2]} 79. Ra4 {[%clk 0:00:05]} 79...
Rh3+ {[%clk 0:00:34.4]} 80. Kd2 {[%clk 0:00:05.2]} 80... Kc5 {[%clk 0:00:33.5]}
81. Ke2 {[%clk 0:00:04.4]} 1/2-1/2

[Event "*** Titled Tuesday Blitz"]
[Site "Chess.com"]
[Date "2020.11.03"]
[Round "6"]
[White "MoreChessJulia"]
[Black "emiliochess"]
[Result "1-0"]
[WhiteElo "2075"]
[BlackElo "2233"]
[TimeControl "180+1"]
[EndTime "11:11:53 PST"]
[Termination "MoreChessJulia won by checkmate"]

1. d4 {[%clk 0:02:59.8]} 1... d5 {[%clk 0:02:57.3]} 2. c4 {[%clk 0:02:59.5]}
2... c6 {[%clk 0:02:57]} 3. Nf3 {[%clk 0:02:59.3]} 3... Nf6 {[%clk 0:02:57.2]}
4. Nc3 {[%clk 0:02:58]} 4... e6 {[%clk 0:02:54]} 5. e3 {[%clk 0:02:57.6]} 5...
Nbd7 {[%clk 0:02:53.9]} 6. Bd3 {[%clk 0:02:57.4]} 6... Be7 {[%clk 0:02:52.1]} 7.
a3 {[%clk 0:02:56.5]} 7... b6 {[%clk 0:02:52.3]} 8. e4 {[%clk 0:02:54.7]} 8...
dxe4 {[%clk 0:02:52.2]} 9. Nxe4 {[%clk 0:02:54.7]} 9... Nxe4 {[%clk 0:02:53.1]}
10. Bxe4 {[%clk 0:02:54.7]} 10... Bb7 {[%clk 0:02:54]} 11. b4 {[%clk 0:02:54.5]}
11... c5 {[%clk 0:02:47.1]} 12. Bxb7 {[%clk 0:02:53.3]} 12... Rb8 {[%clk
0:02:46.1]} 13. Bc6 {[%clk 0:02:52.9]} 13... O-O {[%clk 0:02:44.3]} 14. dxc5
{[%clk 0:02:52.2]} 14... Nf6 {[%clk 0:02:43.3]} 15. Qxd8 {[%clk 0:02:50.8]}
15... Rfxd8 {[%clk 0:02:44.2]} 16. O-O {[%clk 0:02:50]} 16... bxc5 {[%clk
0:02:44.1]} 17. b5 {[%clk 0:02:48.1]} 17... h6 {[%clk 0:02:40.3]} 18. h3 {[%clk
0:02:45.6]} 18... Rd3 {[%clk 0:02:39.1]} 19. Be3 {[%clk 0:02:43.7]} 19... g5
{[%clk 0:02:34.5]} 20. Rfd1 {[%clk 0:02:43.1]} 20... Rc3 {[%clk 0:02:31.6]} 21.
Rdc1 {[%clk 0:02:34.6]} 21... Rd3 {[%clk 0:02:30.2]} 22. Kf1 {[%clk 0:02:34.6]}
22... g4 {[%clk 0:02:29.8]} 23. hxg4 {[%clk 0:02:34]} 23... Nxg4 {[%clk
0:02:30.7]} 24. Ke2 {[%clk 0:02:34.1]} 24... Rd6 {[%clk 0:02:22.9]} 25. Rd1
{[%clk 0:02:33.1]} 25... Rxc6 {[%clk 0:02:11.6]} 26. bxc6 {[%clk 0:02:32.3]}
26... Rb2+ {[%clk 0:02:11.6]} 27. Rd2 {[%clk 0:02:32.3]} 27... Rb6 {[%clk
0:02:11.3]} 28. Rd7 {[%clk 0:02:23.3]} 28... Bf6 {[%clk 0:02:10.6]} 29. Rad1
{[%clk 0:02:20.6]} 29... Rxc6 {[%clk 0:02:10.5]} 30. Rxa7 {[%clk 0:02:18.7]}
30... Rb6 {[%clk 0:02:10.1]} 31. Rdd7 {[%clk 0:02:15.9]} 31... Rb2+ {[%clk
0:02:08.4]} 32. Nd2 {[%clk 0:02:15.6]} 32... Ne5 {[%clk 0:02:07.8]} 33. Rdb7
{[%clk 0:02:08.4]} 33... Rc2 {[%clk 0:02:06.4]} 34. Kd1 {[%clk 0:02:02.8]} 34...
Ra2 {[%clk 0:02:06.1]} 35. Bxc5 {[%clk 0:01:57.3]} 35... Bg5 {[%clk 0:02:01.5]}
36. Be3 {[%clk 0:01:51.6]} 36... Bf6 {[%clk 0:01:59.6]} 37. Bxh6 {[%clk
0:01:46.7]} 37... Kh7 {[%clk 0:01:57.9]} 38. Be3 {[%clk 0:01:42.9]} 38... Kg6
{[%clk 0:01:56.7]} 39. Bd4 {[%clk 0:01:37.4]} 39... Bg5 {[%clk 0:01:52.2]} 40.
Be3 {[%clk 0:01:33.3]} 40... Bf6 {[%clk 0:01:50]} 41. Rb5 {[%clk 0:01:31.3]}
41... Nd3 {[%clk 0:01:46]} 42. g4 {[%clk 0:01:24.2]} 42... Nb2+ {[%clk
0:01:45.8]} 43. Ke2 {[%clk 0:01:23.6]} 43... Nxc4 {[%clk 0:01:45.9]} 44. g5
{[%clk 0:01:20.8]} 44... Bc3 {[%clk 0:01:35]} 45. Kd3 {[%clk 0:01:20.7]} 45...
Nxd2 {[%clk 0:01:07.4]} 46. Kxc3 {[%clk 0:01:15.5]} 46... Ne4+ {[%clk
0:01:07.1]} 47. Kd3 {[%clk 0:01:12]} 47... Nd6 {[%clk 0:01:04.3]} 48. Rb3 {[%clk
0:01:07.4]} 48... Kf5 {[%clk 0:01:00.9]} 49. Ra5+ {[%clk 0:01:04.2]} 49... Kg6
{[%clk 0:00:58.6]} 50. Rb6 {[%clk 0:01:01.5]} 50... Nf5 {[%clk 0:00:54.6]} 51.
Rb7 {[%clk 0:00:55.1]} 51... Nd6 {[%clk 0:00:42.1]} 52. Rd7 {[%clk 0:00:54]}
52... Nf5 {[%clk 0:00:35.5]} 53. Raa7 {[%clk 0:00:49]} 53... e5 {[%clk
0:00:24.9]} 54. Rxf7 {[%clk 0:00:47.5]} 54... e4+ {[%clk 0:00:25.3]} 55. Kc3
{[%clk 0:00:44.9]} 55... Ra1 {[%clk 0:00:20.6]} 56. Rf6+ {[%clk 0:00:41.9]}
56... Kh5 {[%clk 0:00:19.7]} 57. Rxf5 {[%clk 0:00:39.9]} 57... Kg4 {[%clk
0:00:19.8]} 58. Re5 {[%clk 0:00:36]} 58... Kf3 {[%clk 0:00:19.7]} 59. Rf7+
{[%clk 0:00:34.5]} 59... Ke2 {[%clk 0:00:20.1]} 60. Rd5 {[%clk 0:00:34.3]} 60...
Ke1 {[%clk 0:00:20]} 61. Rd4 {[%clk 0:00:32.4]} 61... Ke2 {[%clk 0:00:19.9]} 62.
Kb4 {[%clk 0:00:32]} 62... Rb1+ {[%clk 0:00:19.8]} 63. Ka5 {[%clk 0:00:31.6]}
63... Rb8 {[%clk 0:00:19.6]} 64. Ra7 {[%clk 0:00:30.3]} 64... Kf3 {[%clk
0:00:19]} 65. a4 {[%clk 0:00:30.1]} 65... Ke2 {[%clk 0:00:19.1]} 66. Ka6 {[%clk
0:00:30]} 66... Kf3 {[%clk 0:00:19.6]} 67. Rb4 {[%clk 0:00:29.8]} 67... Rc8
{[%clk 0:00:19.2]} 68. Rab7 {[%clk 0:00:29.1]} 68... Ra8+ {[%clk 0:00:18.8]} 69.
Kb6 {[%clk 0:00:27.8]} 69... Ke2 {[%clk 0:00:17.2]} 70. a5 {[%clk 0:00:27.5]}
70... Kf3 {[%clk 0:00:17.8]} 71. a6 {[%clk 0:00:27.3]} 71... Kg4 {[%clk
0:00:18.4]} 72. a7 {[%clk 0:00:26.6]} 72... Kf5 {[%clk 0:00:19]} 73. Rb8 {[%clk
0:00:24.9]} 73... Rxa7 {[%clk 0:00:18.2]} 74. Kxa7 {[%clk 0:00:23.5]} 74... Kg6
{[%clk 0:00:19.1]} 75. R4b6+ {[%clk 0:00:23.1]} 75... Kh5 {[%clk 0:00:19.1]} 76.
Rh8+ {[%clk 0:00:22.5]} 76... Kg4 {[%clk 0:00:19.5]} 77. g6 {[%clk 0:00:21.6]}
77... Kf3 {[%clk 0:00:18.6]} 78. g7 {[%clk 0:00:21.6]} 78... Ke2 {[%clk
0:00:18.7]} 79. Rh3 {[%clk 0:00:19.7]} 79... Kd3 {[%clk 0:00:17.3]} 80. g8=Q
{[%clk 0:00:19.3]} 80... Ke2 {[%clk 0:00:17.7]} 81. Qc4+ {[%clk 0:00:18.1]}
81... Kd1 {[%clk 0:00:15.7]} 82. Rb1# {[%clk 0:00:17.4]} 1-0

[Event "*** Titled Tuesday Blitz"]
[Site "Chess.com"]
[Date "2020.11.03"]
[Round "6"]
[White "pedroholly22"]
[Black "lelya96"]
[Result "1-0"]
[WhiteElo "2379"]
[BlackElo "2211"]
[TimeControl "180+1"]
[EndTime "11:11:54 PST"]
[Termination "pedroholly22 won by resignation"]

1. e4 {[%clk 0:02:44.8]} 1... e5 {[%clk 0:02:59.5]} 2. Nf3 {[%clk 0:02:44.5]}
2... Nc6 {[%clk 0:02:59.1]} 3. Bb5 {[%clk 0:02:45]} 3... a6 {[%clk 0:02:58.8]}
4. Ba4 {[%clk 0:02:44.8]} 4... Nf6 {[%clk 0:02:58.5]} 5. O-O {[%clk 0:02:45.4]}
5... b5 {[%clk 0:02:57.7]} 6. Bb3 {[%clk 0:02:45.3]} 6... Bc5 {[%clk 0:02:58.3]}
7. Nxe5 {[%clk 0:02:45]} 7... Nxe5 {[%clk 0:02:57.3]} 8. d4 {[%clk 0:02:45.6]}
8... Bxd4 {[%clk 0:02:57.1]} 9. Qxd4 {[%clk 0:02:45.2]} 9... d6 {[%clk 0:02:54]}
10. f4 {[%clk 0:02:44.5]} 10... Nc6 {[%clk 0:02:50.3]} 11. Qc3 {[%clk
0:02:38.1]} 11... Bb7 {[%clk 0:02:47.7]} 12. e5 {[%clk 0:02:36]} 12... Ne4
{[%clk 0:02:36.5]} 13. Qh3 {[%clk 0:02:07.8]} 13... O-O {[%clk 0:02:10.6]} 14.
e6 {[%clk 0:02:04]} 14... fxe6 {[%clk 0:01:57.3]} 15. Qxe6+ {[%clk 0:02:02.1]}
15... Kh8 {[%clk 0:01:55.7]} 16. Qxe4 {[%clk 0:02:01.9]} 16... Qf6 {[%clk
0:01:49.4]} 17. Qe6 {[%clk 0:01:39.2]} 17... Qh4 {[%clk 0:01:38.4]} 18. Qe1
{[%clk 0:01:34.3]} 18... Qf6 {[%clk 0:01:37]} 19. Nc3 {[%clk 0:01:33.4]} 19...
Rae8 {[%clk 0:01:34.4]} 20. Qf2 {[%clk 0:01:27.7]} 20... Nd4 {[%clk 0:01:26.6]}
21. Bd2 {[%clk 0:01:23.3]} 21... Qg6 {[%clk 0:01:19.1]} 22. Kh1 {[%clk 0:00:59]}
22... b4 {[%clk 0:01:03.4]} 23. Bd5 {[%clk 0:00:23.6]} 23... Bxd5 {[%clk
0:00:56.3]} 24. Nxd5 {[%clk 0:00:22.1]} 24... Re2 {[%clk 0:00:56.4]} 25. Qg3
{[%clk 0:00:22.1]} 25... Qxg3 {[%clk 0:00:47.5]} 26. hxg3 {[%clk 0:00:23]} 26...
Rxd2 {[%clk 0:00:47.7]} 27. Nxc7 {[%clk 0:00:22.2]} 27... Rxc2 {[%clk
0:00:41.8]} 28. Nxa6 {[%clk 0:00:21.5]} 28... Rxb2 {[%clk 0:00:39.2]} 29. Rab1
{[%clk 0:00:20.4]} 29... Rxa2 {[%clk 0:00:37.5]} 30. Nxb4 {[%clk 0:00:19.9]}
30... Ra3 {[%clk 0:00:36]} 31. Kh2 {[%clk 0:00:16.7]} 31... Ne2 {[%clk
0:00:35.1]} 32. Rf3 {[%clk 0:00:15.4]} 32... Rxf3 {[%clk 0:00:18.8]} 33. gxf3
{[%clk 0:00:16.3]} 33... Nd4 {[%clk 0:00:19.5]} 34. Kg2 {[%clk 0:00:15.6]} 34...
Re8 {[%clk 0:00:19.8]} 35. Rd1 {[%clk 0:00:13.6]} 35... Nb5 {[%clk 0:00:18]} 36.
Rd2 {[%clk 0:00:12.6]} 36... h5 {[%clk 0:00:17.4]} 37. Nc6 {[%clk 0:00:12.1]}
37... Nc3 {[%clk 0:00:14.6]} 38. Nd4 {[%clk 0:00:11.6]} 38... Re3 {[%clk
0:00:13.5]} 39. Nf5 {[%clk 0:00:11.2]} 39... Re6 {[%clk 0:00:11.5]} 40. Nxd6
{[%clk 0:00:10.8]} 40... Ne2 {[%clk 0:00:09.6]} 41. Nf5 {[%clk 0:00:10.5]} 41...
Kh7 {[%clk 0:00:09.2]} 42. Nh4 {[%clk 0:00:09.4]} 42... Nc3 {[%clk 0:00:09.5]}
43. Kf2 {[%clk 0:00:08.9]} 43... Nb5 {[%clk 0:00:09]} 44. Nf5 {[%clk 0:00:07.6]}
44... Rf6 {[%clk 0:00:09.1]} 45. Ne3 {[%clk 0:00:07.6]} 45... Nc3 {[%clk
0:00:09]} 46. Rc2 {[%clk 0:00:07]} 46... Nb5 {[%clk 0:00:08.5]} 47. Nd5 {[%clk
0:00:07.3]} 47... Rd6 {[%clk 0:00:08.7]} 48. Ne3 {[%clk 0:00:07.4]} 48... Nd4
{[%clk 0:00:08.9]} 49. Rd2 {[%clk 0:00:06.5]} 49... Nb5 {[%clk 0:00:09]} 50. Rb2
{[%clk 0:00:06.2]} 50... Nd4 {[%clk 0:00:08.5]} 51. Ng2 {[%clk 0:00:06.7]} 51...
Nf5 {[%clk 0:00:08.2]} 52. Rb5 {[%clk 0:00:05.6]} 52... g6 {[%clk 0:00:07.3]}
53. Rb2 {[%clk 0:00:04.4]} 53... Nd4 {[%clk 0:00:07]} 54. Rd2 {[%clk 0:00:04.1]}
54... Nf5 {[%clk 0:00:07.1]} 55. Rxd6 {[%clk 0:00:04.7]} 55... Nxd6 {[%clk
0:00:06.6]} 56. Ne3 {[%clk 0:00:05.6]} 56... Nf7 {[%clk 0:00:06.7]} 57. Ke2
{[%clk 0:00:06]} 57... Kh6 {[%clk 0:00:07.2]} 58. Kd3 {[%clk 0:00:06.3]} 58...
Nd6 {[%clk 0:00:07.4]} 59. Kd4 {[%clk 0:00:06.3]} 59... Nb5+ {[%clk 0:00:07.4]}
60. Kc5 {[%clk 0:00:06.2]} 60... Nc3 {[%clk 0:00:07.6]} 61. Nf1 {[%clk
0:00:04.2]} 61... Ne2 {[%clk 0:00:07.7]} 62. Kc4 {[%clk 0:00:04.1]} 62... h4
{[%clk 0:00:07.7]} 63. Kd3 {[%clk 0:00:04.3]} 63... Nxg3 {[%clk 0:00:05.8]} 64.
Nxg3 {[%clk 0:00:03.9]} 64... hxg3 {[%clk 0:00:06.2]} 65. Ke2 {[%clk 0:00:04.5]}
65... Kh5 {[%clk 0:00:06.9]} 66. Kf1 {[%clk 0:00:04.9]} 66... g5 {[%clk
0:00:05.6]} 67. f5 {[%clk 0:00:04.1]} 67... Kh6 {[%clk 0:00:05.9]} 68. Kg2
{[%clk 0:00:04]} 68... Kg7 {[%clk 0:00:06.8]} 69. Kxg3 {[%clk 0:00:03.8]} 69...
Kf6 {[%clk 0:00:07.7]} 70. Kg4 {[%clk 0:00:04.2]} 70... Ke5 {[%clk 0:00:06.8]}
71. Kxg5 {[%clk 0:00:05.1]} 71... Kd6 {[%clk 0:00:07]} 72. f6 {[%clk 0:00:06]}
72... Ke6 {[%clk 0:00:07.1]} 73. Kg6 {[%clk 0:00:06.9]} 73... Ke5 {[%clk
0:00:07.5]} 74. Kg7 {[%clk 0:00:07.8]} 1-0

[Event "*** Titled Tuesday Blitz"]
[Site "Chess.com"]
[Date "2020.11.03"]
[Round "6"]
[White "Shield12"]
[Black "machupichu10"]
[Result "0-1"]
[WhiteElo "2901"]
[BlackElo "2787"]
[TimeControl "180+1"]
[EndTime "11:12:06 PST"]
[Termination "machupichu10 won by resignation"]

1. e4 {[%clk 0:03:00.9]} 1... c6 {[%clk 0:03:00.3]} 2. d4 {[%clk 0:03:01]} 2...
d5 {[%clk 0:03:00.9]} 3. exd5 {[%clk 0:03:01.9]} 3... cxd5 {[%clk 0:03:01.8]} 4.
Bd3 {[%clk 0:03:02.6]} 4... Nc6 {[%clk 0:03:01.7]} 5. c3 {[%clk 0:03:02.7]} 5...
Qc7 {[%clk 0:03:01.8]} 6. h3 {[%clk 0:03:02.7]} 6... Nf6 {[%clk 0:03:01.3]} 7.
Nf3 {[%clk 0:03:03.1]} 7... g6 {[%clk 0:03:01.8]} 8. O-O {[%clk 0:03:03.2]} 8...
Bg7 {[%clk 0:02:58]} 9. Qc2 {[%clk 0:02:59.9]} 9... O-O {[%clk 0:02:54.4]} 10.
Re1 {[%clk 0:03:00.1]} 10... Nh5 {[%clk 0:02:53.2]} 11. Qe2 {[%clk 0:02:42]}
11... Nf4 {[%clk 0:02:43.9]} 12. Bxf4 {[%clk 0:02:41.8]} 12... Qxf4 {[%clk
0:02:44.8]} 13. Nbd2 {[%clk 0:02:41.3]} 13... Bf5 {[%clk 0:02:23.3]} 14. Bxf5
{[%clk 0:02:39]} 14... Qxf5 {[%clk 0:02:24.2]} 15. Nb3 {[%clk 0:02:37.6]} 15...
Rfc8 {[%clk 0:02:14.8]} 16. a4 {[%clk 0:02:35.7]} 16... Qd7 {[%clk 0:02:07.3]}
17. a5 {[%clk 0:02:32.1]} 17... e6 {[%clk 0:02:05.9]} 18. a6 {[%clk 0:02:21.9]}
18... b6 {[%clk 0:02:05.7]} 19. Qb5 {[%clk 0:02:17.3]} 19... Rc7 {[%clk
0:02:03.8]} 20. Nc1 {[%clk 0:02:10.7]} 20... Re8 {[%clk 0:01:14.6]} 21. Nd3
{[%clk 0:02:09.1]} 21... f6 {[%clk 0:01:14.3]} 22. Rad1 {[%clk 0:01:57.5]} 22...
Ne5 {[%clk 0:01:12.8]} 23. Qxd7 {[%clk 0:01:54.7]} 23... Nxf3+ {[%clk
0:01:12.9]} 24. gxf3 {[%clk 0:01:55.6]} 24... Rxd7 {[%clk 0:01:13.5]} 25. Ra1
{[%clk 0:01:49.9]} 25... Kf7 {[%clk 0:01:13.2]} 26. Ra3 {[%clk 0:01:49.9]} 26...
Bf8 {[%clk 0:01:12.5]} 27. Rb3 {[%clk 0:01:50.3]} 27... Rc8 {[%clk 0:01:10.2]}
28. Rb5 {[%clk 0:01:49.4]} 28... Rc4 {[%clk 0:01:05]} 29. Ra1 {[%clk 0:01:43.9]}
29... Rd8 {[%clk 0:00:53.2]} 30. Kf1 {[%clk 0:01:42]} 30... Bd6 {[%clk
0:00:49.4]} 31. Ke2 {[%clk 0:01:41.3]} 31... Ke7 {[%clk 0:00:48.6]} 32. Ne1
{[%clk 0:01:32.3]} 32... Kd7 {[%clk 0:00:40]} 33. Nc2 {[%clk 0:01:32.4]} 33...
Rcc8 {[%clk 0:00:35.5]} 34. Ne3 {[%clk 0:01:21.9]} 34... Kc6 {[%clk 0:00:30.3]}
35. Rb3 {[%clk 0:01:22]} 35... b5 {[%clk 0:00:30.4]} 36. Nc2 {[%clk 0:01:08.2]}
36... Rb8 {[%clk 0:00:25.7]} 37. Kd3 {[%clk 0:01:06.7]} 37... Rb6 {[%clk
0:00:19.6]} 38. Nb4+ {[%clk 0:00:54.9]} 38... Kd7 {[%clk 0:00:19.4]} 39. Ra5
{[%clk 0:00:53]} 39... Rdb8 {[%clk 0:00:18.9]} 40. Nc2 {[%clk 0:00:50.6]} 40...
g5 {[%clk 0:00:18.6]} 41. Na3 {[%clk 0:00:27]} 41... Kc6 {[%clk 0:00:17.6]} 42.
Nc2 {[%clk 0:00:25.7]} 42... Rg8 {[%clk 0:00:14.4]} 43. Ra1 {[%clk 0:00:24]}
43... Rg6 {[%clk 0:00:13.5]} 44. Nb4+ {[%clk 0:00:22.8]} 44... Kd7 {[%clk
0:00:13.2]} 45. Ra5 {[%clk 0:00:23]} 45... Rh6 {[%clk 0:00:12.4]} 46. Nc2 {[%clk
0:00:20.1]} 46... Kc6 {[%clk 0:00:12.7]} 47. Nb4+ {[%clk 0:00:19.8]} 47... Kc7
{[%clk 0:00:12.3]} 48. Nc2 {[%clk 0:00:19.4]} 48... Kc6 {[%clk 0:00:11.6]} 49.
Nb4+ {[%clk 0:00:19.5]} 49... Bxb4 {[%clk 0:00:12.1]} 50. cxb4 {[%clk
0:00:20.4]} 50... Rxh3 {[%clk 0:00:12.5]} 51. Rc3+ {[%clk 0:00:21]} 51... Kd6
{[%clk 0:00:12.7]} 52. Ke2 {[%clk 0:00:21.3]} 52... Rh4 {[%clk 0:00:13]} 53. Ke3
{[%clk 0:00:21]} 53... Rh1 {[%clk 0:00:13.2]} 54. Rc5 {[%clk 0:00:20.2]} 54...
Rb1 {[%clk 0:00:12.6]} 55. Rcxb5 {[%clk 0:00:20.2]} 55... Rxb5 {[%clk
0:00:09.2]} 56. Rxb5 {[%clk 0:00:21.1]} 56... Ra1 {[%clk 0:00:09.6]} 57. Rb7
{[%clk 0:00:16.5]} 57... Rxa6 {[%clk 0:00:09.8]} 58. Rxh7 {[%clk 0:00:16.8]}
58... Rb6 {[%clk 0:00:10.3]} 59. Rxa7 {[%clk 0:00:15.9]} 59... Rxb4 {[%clk
0:00:10.8]} 60. Ra6+ {[%clk 0:00:16.5]} 60... Ke7 {[%clk 0:00:10.7]} 61. Ra7+
{[%clk 0:00:16.5]} 61... Ke8 {[%clk 0:00:10.7]} 62. Ra2 {[%clk 0:00:16]} 62...
Rb3+ {[%clk 0:00:09.5]} 63. Ke2 {[%clk 0:00:16.3]} 63... Kf7 {[%clk 0:00:09.6]}
64. Ra7+ {[%clk 0:00:14.6]} 64... Kg6 {[%clk 0:00:09.5]} 65. Ra2 {[%clk
0:00:15.2]} 65... Kf5 {[%clk 0:00:09.9]} 66. Kf1 {[%clk 0:00:14.6]} 66... Rxf3
{[%clk 0:00:09.9]} 67. Ke2 {[%clk 0:00:13.4]} 67... Rb3 {[%clk 0:00:10.3]} 68.
Kd2 {[%clk 0:00:14.3]} 68... Ke4 {[%clk 0:00:09.1]} 69. Kc2 {[%clk 0:00:14.6]}
69... Rb6 {[%clk 0:00:09.8]} 70. Kc3 {[%clk 0:00:14.3]} 70... Rc6+ {[%clk
0:00:10.1]} 71. Kd2 {[%clk 0:00:14.8]} 71... Kxd4 {[%clk 0:00:10.6]} 72. b4
{[%clk 0:00:15.4]} 72... Rb6 {[%clk 0:00:10.8]} 73. Rb2 {[%clk 0:00:15]} 73...
Kc4 {[%clk 0:00:11.1]} 74. Ke3 {[%clk 0:00:15.9]} 74... Rxb4 {[%clk 0:00:10.7]}
75. Rc2+ {[%clk 0:00:16.8]} 75... Kb5 {[%clk 0:00:11.3]} 76. Rc7 {[%clk
0:00:17.7]} 76... Kb6 {[%clk 0:00:10.7]} 77. Re7 {[%clk 0:00:17.6]} 77... Re4+
{[%clk 0:00:11.1]} 78. Kd3 {[%clk 0:00:18.5]} 78... Kc6 {[%clk 0:00:10.8]} 79.
f3 {[%clk 0:00:19.4]} 79... Kd6 {[%clk 0:00:11.2]} 80. Re8 {[%clk 0:00:19.7]}
80... Ra4 {[%clk 0:00:11.1]} 81. Rd8+ {[%clk 0:00:20]} 81... Ke5 {[%clk
0:00:11.5]} 82. Rb8 {[%clk 0:00:20.9]} 82... Ra3+ {[%clk 0:00:11.9]} 83. Ke2
{[%clk 0:00:21.4]} 83... d4 {[%clk 0:00:11.3]} 84. Rb5+ {[%clk 0:00:21.7]} 84...
Kf4 {[%clk 0:00:11.7]} 85. Rb4 {[%clk 0:00:22.6]} 85... e5 {[%clk 0:00:11.9]}
0-1